Workbook

Sheet Reference
A1: Electrical | C1: Pneumatics | E1: Motion | O1: Hardware | Q1: Framing | R1: Fasteners
A2: Motors | B2: Control System | C2: Compressor | E2: Gears | G2: Sprockets & Chain | I2: Belts & Pulleys | K2: Transmission | M2: Wheels | O2: Hubs | Q2: VersaFrame | R2: Bolts
A3: =HYPERLINK("Electrical\Motors\CIM.pdf","CIM") -> CIM | B3: Battery | C3: Drawing | E3: =HYPERLINK("Motion\Gears\CIM%20Gears.pdf","CIM") -> CIM | F3: 11,12,13,14 | G3: #35 Sprockets | I3: HTD | J3: 5mm | K3: Calculators | M3: Traction | O3: .5" Hex Vex Pro | Q3: Tubing | R3: 4-40
A4: Shaft: 8mm, 2mm Keyway | B4: 12V | C4: User Manual | E4: 775Pro 32 DP | F4: 12 | G4: =HYPERLINK("Motion\Sprockets\#35 Hub.pdf","Hub") -> Hub | H4: 12,15 | I4: Width | J4: 9, 15 mm | K4: Motors | M4: Stealth Wheels | O4: .5" Hex AM Full | Q4: 1 x 1 x .04 (Holes 4 Sides) | R4: Diameter | S4: 0.112
A5: Free RPM: 5330 | B5: 17 Amp Hour | C5: AM Information | E5: =HYPERLINK("Motion\Gears\.5%20Hex%20Gears.pdf",".5"" Hex") -> .5" Hex | F5: 18,20,24,30,34, | G5: =HYPERLINK("Motion\Sprockets\#35 Double Sprocket Hub.pdf","Double + Hub") -> Double + Hub | H5: 12,15 | I5: Pulleys | K5: CIM | L5: 0 | M5: Diameter | N5: 2" or 4" | O5: .5" Hex AM Lightened | Q5: =HYPERLINK("Framing\VersaFrame\Tubing%201%20x%201%20x%20.1.pdf","1 x 1 x .10 (Holes 2 Sides)") -> 1 x 1 x .10 (Holes 2 Sides) | R5: Hole Drill Size | S5: 1 / 8
A6: Free A: 2.7 | B6: 13.8 Pounds | C6: 2.11" x 5.94" x 4.53" | F6: 36,40,42,44,50, | G6: =HYPERLINK("Motion\Sprockets\#35 Plate.pdf","Plate") -> Plate | H6: 22,24,26,28,30, | I6: =HYPERLINK("Motion\Pulleys\HTD%20Timing%20Pulley.pdf","Hub") -> Hub | J6: 18,24,30,36 | K6: Mini CIM | L6: 0 | M6: Bore | N6: .5", .375", 8mm | O6: .375" Hex AM | Q6: 1 x 2 x .10 (Holes Short Sides) | R6: Tap Drill Size | S6: 3 / 32
A7: Stall A: 131 | B7: 3" x 7.1" x 6.6" | C7: 2.4 Pounds Weight | F7: 54,60,64,72,84 | G7: 32,33,36,42,44,48,54,60 . | I7: Versa | J7: =HYPERLINK("Motion\Pulleys\VersaPulley%2042t.pdf","42") -> 42 | K7: 2 CIM 1 MiniCIM | L7: 0 | M7: Durometer | N7: 50A, 60A, 77A | O7: Snowblower | Q7: Holes Spaceing = 1" | R7: 6-32
A8: Stall in-lbs: 21.33 | B8: roboRIO | C8: Required Components | E8: =HYPERLINK("Motion\Gears\.5%20Hex%20Gears%20Versa.pdf",".5"" Hex Versa") -> .5" Hex Versa | F8: 48,50,54,60,64 | G8: #35 Chain | J8: =HYPERLINK("Motion\Pulleys\VersaPulley%2060t.pdf","60") -> 60 | K8: 1 CIM 2 MiniCIM | L8: 0 | M8: C of Friction | N8: 1.14, 0.87, 0.92 | O8: 10mm 4mm Keyway | Q8: Hole Diameter = .163" | R8: Diameter | S8: 0.138
A9: Weight: 2.8 | B9: 5.637" x 5.754" x 1.355" | C9: Pressure Relief Valve | F9: 66,70,72,84 | G9: Height: | H9: .358" | I9: Belts | K9: Bag | L9: 0 | M9: Thickness | N9: 1" | O9: 8mm 2mm Keyway | Q9: Brackets | R9: Hole Drill Size | S9: 5 / 32
A10: =HYPERLINK("Electrical/Motors/Mini%20CIM.pdf","Mini CIM") -> Mini CIM | B10: =HYPERLINK("Electrical\Control%20System\roboRIO%20Overview.pdf","Overview") -> Overview | C10: Pressure Switch | E10: .375" Hex 32 DP | F10: 20,40,60,80 | G10: Width: | H10: .463" | I10: 60,70,80,90,100,104,110,120,130,140, | K10: 775Pro | L10: 0 | M10: BaneBots Wheels | O10: Collars | Q10: =HYPERLINK("Framing\VersaFrame\30%20Degree.pdf","30 Degree") -> 30 Degree | R10: Tap Drill Size | S10: 7 / 64
A11: Shaft: 8mm, 2mm Keyway | B11: =HYPERLINK("Electrical\Control%20System\roboRIO%20User%20Manual.pdf","User Manual") -> User Manual | C11: Pressure Vent Plug | E11: =HYPERLINK("Motion\Gears\.375%20Hex%20Gears.pdf",".375"" Hex 20 DP") -> .375" Hex 20 DP | F11: 14,18,20,24,30, | G11: #25 Sprockets | I11: 150,160,170,180,190,200,225,250 | K11: Snowblower | L11: 0 | M11: Diameter | O11: =HYPERLINK("Hardware\Collars\Vex%20Pro%20Collars.pdf","Vex Pro") -> Vex Pro | P11: .25" Thick | Q11: =HYPERLINK("Framing\VersaFrame\45%20Degree.pdf","45 Degree") -> 45 Degree | R11: 8-32
A12: Free RPM: 5840 | B12: =HYPERLINK("Electrical\Control%20System\120%20Amp%20Breaker.pdf","120 Amp Breaker") -> 120 Amp Breaker | C12: Pressure Gauge | F12: 34,36,40,42,50 | G12: =HYPERLINK("Motion\Sprockets\#25 Hub.pdf","Hub") -> Hub | H12: 16,18,22 | I12: Calculators | K12: AM 9015 | L12: 0 | M12: Bore | N12: .5" Hex | O12: =HYPERLINK("Hardware\Collars\.5%20Hex%20AndyMark.pdf","AM .5"" Hex") -> AM .5" Hex | P12: .30" Thick | Q12: =HYPERLINK("Framing\VersaFrame\60%20Degree.pdf","60 Degree") -> 60 Degree | R12: Diameter | S12: 0.164
A13: Free A: 3 | B13: 2.9" x 1.9" x 1.5" | C13: Pressure Regulator | E13: Calculators | G13: =HYPERLINK("Motion\Sprockets\#25 Plate.pdf","Plate") -> Plate | H13: 32,34,36,38,40, | I13: Tooth Pitch | J13: 5 | K13: RS 775 | L13: 0 | M13: Thickness | O13: AM .375" Hex | P13: .30" Thick | Q13: =HYPERLINK("Framing\VersaFrame\90%20Degree.pdf","90 Degree") -> 90 Degree | R13: Hole Drill Size | S13: 11 / 64
A14: Stall A: 89 | B14: =HYPERLINK("Electrical\Control%20System\PDP.pdf","Power Distribution Panel") -> Power Distribution Panel | C14: Clippard Tank | E14: Gear 1 | G14: 42,44,48,54,58,60,64,66,72 . | I14: Pulley 1 Teeth | J14: 18 | K14: Total Motors | L14: =L5+L6+L7+L8+L9+L10+L11+L12+L13 -> 0 | M14: Colson | O14: Couplers | Q14: =HYPERLINK("Framing\VersaFrame\120%20Degree.pdf","120 Degree") -> 120 Degree | R14: Tap Drill Size | S14: 9 / 64
A15: Stall in-lbs: 12.4 | B15: 7.586" x 4.759" x 1.423" | C15: 35 Cubic Inches Air | E15: Diametral Pitch | F15: 0 | G15: #25 Chain | I15: Pulley 2 Teeth | J15: 18 | K15: Reductions | M15: Diameter x Thickness | O15: =HYPERLINK("Hardware\Couplers\.5%20Hex%20Coupler.pdf",".5"" Hex - .5"" Hex") -> .5" Hex - .5" Hex | P15: 1.5" Long | Q15: =HYPERLINK("Framing\VersaFrame\135%20Degree.pdf","135 Degree") -> 135 Degree | R15: 10-32 & 10-24
A16: Weight: 2.16 | B16: 8 40A | C16: 2.5" to 2.75" Diameter x 12.25" | E16: Tooth Count | F16: 0 | G16: Height: | H16: .232" | I16: Teeth on belt | J16: Center Distance | K16: 1 | L16: 1 | M16: 1.625x0.875, 2.5x1.25, 3x0.875, | O16: Spacers | Q16: =HYPERLINK("Framing\VersaFrame\150%20Degree.pdf","150 Degree") -> 150 Degree | R16: Diameter | S16: 0.19
A17: =HYPERLINK("Electrical/Motors/Bag.pdf","Bag") -> Bag | B17: 8 20A-30A | C17: 0.64 Pounds Weight | E17: Outer Diameter | F17: =(F16+2)/F15 -> #DIV/0! | G17: Width: | H17: .354" | I17: 60 | J17: =ROUNDUP(SUM(Reference!$J$13/8)*(2*I17-Reference!$J$14-Reference!$J$15+SQRT((2*I17-Reference!$J$14-Reference!$J$15)^2-(8/3.14159^2)*((Reference!$J$14-Reference!$J$15)^2)))/25.4,3) -> 4.134 | K17: 1 | L17: 1 | M17: 3x1.5, 3.5x1.25, 4x0.875, 4x1.5, 4x2 | O17: =HYPERLINK("Hardware\Spacers\Spacers.pdf","Vex Pro Hex") -> Vex Pro Hex | P17: .5" and .375" | Q17: =HYPERLINK("Framing\VersaFrame\T%20Long.pdf","T Long") -> T Long | R17: Hole Drill Size | S17: 3 / 16
A18: Shaft: 4mm | B18: =HYPERLINK("Electrical\Control%20System\Voltage%20Regulator%20Module.pdf","Voltage Regulator Module") -> Voltage Regulator Module | C18: Calculators | E18: Pitch Diameter | F18: =F16/F15 -> #DIV/0! | G18: Calculators | I18: 70 | J18: =ROUNDUP(SUM(Reference!$J$13/8)*(2*I18-Reference!$J$14-Reference!$J$15+SQRT((2*I18-Reference!$J$14-Reference!$J$15)^2-(8/3.14159^2)*((Reference!$J$14-Reference!$J$15)^2)))/25.4,3) -> 5.119 | K18: 1 | L18: 1 | M18: Bore | N18: .5" Hex | O18: .0625, .125, .25, .5, 1, 2 | Q18: =HYPERLINK("Framing\VersaFrame\T%20Short.pdf","T Short") -> T Short | R18: Tap Drill Size | S18: 5 / 32
A19: Free RPM: 13,180 | B19: 2.22" x 2.03" x .784" | C19: Power | E19: Pitch Radius | F19: =F18/2 -> #DIV/0! | G19: Number of Whole Links | I19: 80 | J19: =ROUNDUP(SUM(Reference!$J$13/8)*(2*I19-Reference!$J$14-Reference!$J$15+SQRT((2*I19-Reference!$J$14-Reference!$J$15)^2-(8/3.14159^2)*((Reference!$J$14-Reference!$J$15)^2)))/25.4,3) -> 6.103 | K19: 1 | L19: 1 | M19: C of Friction | N19: 1 | O19: Bearings | Q19: =HYPERLINK("Framing\VersaFrame\+%20Gusset.pdf","Plus Gusset") -> Plus Gusset | R19: .25-20
A20: Free A: 1.8 | B20: 2 5V 500mA | C20: Cylinder Bore | D20: 0 | E20: Gear 2 | G20: Chain Pitch | H20: 0.375 | I20: 90 | J20: =ROUNDUP(SUM(Reference!$J$13/8)*(2*I20-Reference!$J$14-Reference!$J$15+SQRT((2*I20-Reference!$J$14-Reference!$J$15)^2-(8/3.14159^2)*((Reference!$J$14-Reference!$J$15)^2)))/25.4,3) -> 7.087 | K20: 1 | L20: 1 | M20: Vex Pro Traction Wheels | O20: .5" Hex | Q20: =HYPERLINK("Framing\VersaFrame\Corner%20Gusset.pdf","Corner Gusset") -> Corner Gusset | R20: Diameter | S20: 0.25
A21: Stall A: 53 | B21: 2 5V 2A | C21: Rod Diameter | D21: 0 | E21: Diametral Pitch | F21: 0 | G21: Sprocket #1 Teeth | H21: 12 | I21: 100 | J21: =ROUNDUP(SUM(Reference!$J$13/8)*(2*I21-Reference!$J$14-Reference!$J$15+SQRT((2*I21-Reference!$J$14-Reference!$J$15)^2-(8/3.14159^2)*((Reference!$J$14-Reference!$J$15)^2)))/25.4,3) -> 8.071 | K21: 1 | L21: 1 | M21: Diameter | N21: 6" | O21: .375" Hex | Q21: =HYPERLINK("Framing\VersaFrame\Bearing%20End.pdf","Bearing End") -> Bearing End | R21: Hole Drill Size | S21: 1 / 4
A22: Stall in-lbs: 3.5 | B22: 2 12V 500mA | C22: # of Cylinders | D22: 0 | E22: Tooth Count | F22: 0 | G22: Sprocket #2 Teeth | H22: 12 | I22: 104 | J22: =ROUNDUP(SUM(Reference!$J$13/8)*(2*I22-Reference!$J$14-Reference!$J$15+SQRT((2*I22-Reference!$J$14-Reference!$J$15)^2-(8/3.14159^2)*((Reference!$J$14-Reference!$J$15)^2)))/25.4,3) -> 8.465 | K22: 1 | L22: 1 | M22: Bore | N22: 1.125" & Versa | O22: Shaft | Q22: =HYPERLINK("Framing\VersaFrame\Bearing%20Side.pdf","Bearing Side") -> Bearing Side | R22: Tap Drill Size | S22: 13 / 64
A23: Weight: 0.71 | B23: 2 12V 2A | C23: Distance From Perpendicular | E23: Outer Diameter | F23: =(F22+2)/F21 -> #DIV/0! | G23: Center Distance (Inches) | H23: 12 | I23: 110 | J23: =ROUNDUP(SUM(Reference!$J$13/8)*(2*I23-Reference!$J$14-Reference!$J$15+SQRT((2*I23-Reference!$J$14-Reference!$J$15)^2-(8/3.14159^2)*((Reference!$J$14-Reference!$J$15)^2)))/25.4,3) -> 9.056 | K23: 1 | L23: 1 | M23: Thickness | N23: 1", 1.5", 2" | O23: Thunderhex .5" Hex Shaft | Q23: =HYPERLINK("Framing\VersaFrame\VersaPlanetary%20Face%20Mount.pdf","VersaPlanetary Face Mount") -> VersaPlanetary Face Mount | R23: M4
A24: =HYPERLINK("Electrical\Motors\775pro.pdf","775Pro") -> 775Pro | B24: =HYPERLINK("Electrical\Control%20System\Pneumatic%20Control%20Module.pdf","Pneumatic Control Module") -> Pneumatic Control Module | C24: to Cylinder to Pivot | E24: Pitch Diameter | F24: =F22/F21 -> #DIV/0! | G24: Result: Number Whole Links | H24: =SUM(2*H23/H20+H21/2+H22/2+((H21-H22)/(2*3.14159))^2/(H23/H20)) -> 76 | I24: 120 | J24: =ROUNDUP(SUM(Reference!$J$13/8)*(2*I24-Reference!$J$14-Reference!$J$15+SQRT((2*I24-Reference!$J$14-Reference!$J$15)^2-(8/3.14159^2)*((Reference!$J$14-Reference!$J$15)^2)))/25.4,3) -> 10.04 | K24: Mechanism Path Diameter (in) | M24: AM High Grip Wheels | O24: .201" Hole | P24: 1 / 4" - 20 Tap | Q24: =HYPERLINK("Framing\VersaFrame\VersaPlanetary%20Side%201%20Inch.pdf","VersaPlanetary Side Mount 1""") -> VersaPlanetary Side Mount 1" | R24: Diameter | S24: 4
A25: Shaft: 5mm | B25: 2.72" x 2.24" x .774" | C25: 0 | E25: Pitch Radius | F25: =F24/2 -> #DIV/0! | G25: Center to Center Distance | I25: 130 | J25: =ROUNDUP(SUM(Reference!$J$13/8)*(2*I25-Reference!$J$14-Reference!$J$15+SQRT((2*I25-Reference!$J$14-Reference!$J$15)^2-(8/3.14159^2)*((Reference!$J$14-Reference!$J$15)^2)))/25.4,3) -> 11.024 | K25: (Wheel etc.) | L25: 0 | M25: Diameter | N25: 6" | O25: .5" Hex Shaft | P25: .5774" Across | Q25: =HYPERLINK("Framing\VersaFrame\VersaPlanetary%20Side%202%20Inch.pdf","VersaPlanetary Side Mount 2""") -> VersaPlanetary Side Mount 2" | R25: Hole Drill Size | S25: 3 / 16
A26: Free RPM: 18,730 | B26: 8 Solenoid Outputs | C26: Mechanism Path Diameter (in) | E26: Center Distance | G26: Chain Pitch | H26: 0.375 | I26: 140 | J26: =ROUNDUP(SUM(Reference!$J$13/8)*(2*I26-Reference!$J$14-Reference!$J$15+SQRT((2*I26-Reference!$J$14-Reference!$J$15)^2-(8/3.14159^2)*((Reference!$J$14-Reference!$J$15)^2)))/25.4,3) -> 12.008 | K26: RPM | L26: =(L5/L14*5330 + L6/L14*5840 + L7/L14*5437 + L9/L14*13180 + L10/L14*18730 + L11/L14*100 + L12/L14*16000 + L13/L14*5700 + L8/L14*5593)*(K16/L16)*(K17/L17)*(K18/L18)*(K19/L19)*(K20/L20)*(K21/L21)*(K22/L22)*(K23/L23) -> #DIV/0! | M26: Bore | N26: 1.125" & Hub | O26: .375" Hex Shaft | P26: .4330" Across | Q26: =HYPERLINK("Framing\VersaFrame\VersaPlanetary%20Side%20Mount.pdf","VersaPlanetary Side Mount") -> VersaPlanetary Side Mount | R26: M5
A27: Free A: 0.7 | B27: 1 Pressure Switch Input | C27: 0 | E27: =F19+F25 -> #DIV/0! | G27: Sprocket #1 Teeth | H27: 12 | I27: 150 | J27: =ROUNDUP(SUM(Reference!$J$13/8)*(2*I27-Reference!$J$14-Reference!$J$15+SQRT((2*I27-Reference!$J$14-Reference!$J$15)^2-(8/3.14159^2)*((Reference!$J$14-Reference!$J$15)^2)))/25.4,3) -> 12.993 | K27: RPS | L27: =L26/60 -> #DIV/0! | M27: Thickness | N27: 1" | O27: All Shaft 7075 | R27: Diameter | S27: 5
A28: Stall A: 134 | B28: 1 Compressor Output | C28: Force / Cylinder | E28: .003 Center Add | F28: =E27+0.003 -> #DIV/0! | G28: Sprocket #2 Teeth | H28: 12 | I28: 160 | J28: =ROUNDUP(SUM(Reference!$J$13/8)*(2*I28-Reference!$J$14-Reference!$J$15+SQRT((2*I28-Reference!$J$14-Reference!$J$15)^2-(8/3.14159^2)*((Reference!$J$14-Reference!$J$15)^2)))/25.4,3) -> 13.977 | K28: Feet / Second | L28: =L29/12 -> #DIV/0! | M28: AM Rubber Treaded Wheel | O28: Adapters | R28: Hole Drill Size | S28: 7 / 32
A29: Stall in-lbs: 6.28 | B29: =HYPERLINK("Electrical\Control%20System\Talon%20SR.pdf","Talon SR") -> Talon SR | C29: Force Total | E29: Will Gear 1 & 4 Hit? | G29: Links | H29: 61 | I29: 170 | J29: =ROUNDUP(SUM(Reference!$J$13/8)*(2*I29-Reference!$J$14-Reference!$J$15+SQRT((2*I29-Reference!$J$14-Reference!$J$15)^2-(8/3.14159^2)*((Reference!$J$14-Reference!$J$15)^2)))/25.4,3) -> 14.961 | K29: Inches / Second | L29: =L27*3.141592654*L25 -> #DIV/0! | M29: Diameter | N29: 8" | O29: =HYPERLINK("Hardware\Adapters\8mm%20to%20.5%20Hex.pdf","8mm to .5"" Hex") -> 8mm to .5" Hex | P29: 1" Long | R29: Bolt Sizes
A30: Weight: 0.8 | B30: 2.73" x 1.90" x 1.15" | C30: Torque in / lbs | E30: Gear 1 DP | F30: 0 | G30: Result: Center Distance (Inches) | H30: =SUM(H26/8) * (2*H29-H27-H28 + SQRT((2*H29-H27-H28)^2-(8/3.14159^2)*((H27-H28)^2)) ) -> 9.1875 | I30: 180 | J30: =ROUNDUP(SUM(Reference!$J$13/8)*(2*I30-Reference!$J$14-Reference!$J$15+SQRT((2*I30-Reference!$J$14-Reference!$J$15)^2-(8/3.14159^2)*((Reference!$J$14-Reference!$J$15)^2)))/25.4,3) -> 15.945 | K30: Drive Adjusted | L30: =L28*0.81 -> #DIV/0! | M30: Bore | N30: 1.125" & Hub | R30: CIM | S30: 10-32
A31: =HYPERLINK("Electrical/Motors/AndyMark%209015.pdf","AndyMark 9015") -> AndyMark 9015 | B31: PWM | C31: Pounds @ Path | E31: Gear 1 Tooth | F31: 0 | I31: 190 | J31: =ROUNDUP(SUM(Reference!$J$13/8)*(2*I31-Reference!$J$14-Reference!$J$15+SQRT((2*I31-Reference!$J$14-Reference!$J$15)^2-(8/3.14159^2)*((Reference!$J$14-Reference!$J$15)^2)))/25.4,3) -> 16.93 | K31: Stall in / lbs | L31: =(L5*21.33 + L6*12.4 + L7*6.23 + L8*5.23 + L9*3.5 + L10*6.28 + L11*70 + L12*3.79 + L13*2.1875)/(K16/L16)*(K17/L17)*(K18/L18)*(K19/L19)*(K20/L20)*(K21/L21)*(K22/L22) -> 0 | M31: Thickness | N31: 1" | R31: Mini CIM | S31: 10-32
A32: Shaft: .125" | B32: Talon SRX | C32: Air Usage | E32: Gear 2 DP | F32: 0 | I32: 200 | J32: =ROUNDUP(SUM(Reference!$J$13/8)*(2*I32-Reference!$J$14-Reference!$J$15+SQRT((2*I32-Reference!$J$14-Reference!$J$15)^2-(8/3.14159^2)*((Reference!$J$14-Reference!$J$15)^2)))/25.4,3) -> 17.914 | K32: Pounds @ Path | L32: =L31/L25 -> #DIV/0! | M32: Durometer | N32: 65A | R32: Bag | S32: M4-6H
A33: Free RPM: 16,000 | B33: 2.75" x 1.185" x 0.96" | C33: Cylinder Bore | D33: 0 | E33: Gear 2 Tooth | F33: 0 | I33: 225 | J33: =ROUNDUP(SUM(Reference!$J$13/8)*(2*I33-Reference!$J$14-Reference!$J$15+SQRT((2*I33-Reference!$J$14-Reference!$J$15)^2-(8/3.14159^2)*((Reference!$J$14-Reference!$J$15)^2)))/25.4,3) -> 20.375 | K33: Free Current | L33: =(L5*2.7 + L6*3 + L7*8.4 + L8*8.7 + L9*1.8 + L10*0.7 + L11*5 + L12*1.2 + L13*0) -> 0 | M33: C of Friction | N33: 1 | R33: 775Pro | S33: M4-6H
A34: Free A: 1.2 | B34: =HYPERLINK("Electrical\Control%20System\Talon%20SRX.pdf","Drawing") -> Drawing | C34: Stroke | D34: 0 | E34: Gear 3 DP | F34: 0 | I34: 250 | J34: =ROUNDUP(SUM(Reference!$J$13/8)*(2*I34-Reference!$J$14-Reference!$J$15+SQRT((2*I34-Reference!$J$14-Reference!$J$15)^2-(8/3.14159^2)*((Reference!$J$14-Reference!$J$15)^2)))/25.4,3) -> 22.835 | K34: Stall Current | L34: =(L5*131 + L6*89 + L7*351 + L8*309 + L9*53 + L10*134 + L11*24 + L12*63.8 + L13*22) -> 0 | M34: Pneumatic | R34: Snowblower | S34: M5x0.8
A35: Stall A: 63.8 | B35: =HYPERLINK("Electrical\Control%20System\Talon%20SRX%20User%20Guide.pdf","User Guide") -> User Guide | C35: # of Uses | D35: 0 | E35: Gear 3 Tooth | F35: 0 | M35: Diameter | N35: 7.65" | R35: roboRIO | S35: 4-40
A36: Stall in-lbs: 3.79 | B36: PWM | C36: # of Cylinders | D36: 0 | E36: Gear 4 DP | F36: 0 | M36: Bore | N36: 1.125" & Hub | R36: 120 A Breaker | S36: 1 / 4"
A37: Weight: 0.5 | B37: CAN | C37: Cylinder Bore | D37: 0 | E37: Gear 4 Tooth | F37: 0 | M37: Thickness | N37: 2" | R37: PDP | S37: 10-32 or 10-24
A38: =HYPERLINK("Electrical/Motors/Snowblower.pdf","Snowblower") -> Snowblower | B38: =HYPERLINK("Electrical\Control%20System\Victor%20SP.pdf","Victor SP") -> Victor SP | C38: Stroke | D38: 0 | E38: Answer | F38: =IF(F39>0,"Yes","No") -> #DIV/0! | M38: C of Friction | N38: 0.93 | R38: Voltage RM | S38: 6-32
A39: Shaft: 10mm With Flats | B39: 2.5" x 1.125" x 0.875" | C39: # of Uses | D39: 0 | E39: Clearance | F39: =(((F33/F32)/2+(F35/F34)/2))-(((F31+2)/F30)/2+((F37+2)/F36)/2) -> #DIV/0! | M39: Omni | R39: Pneumatic CM | S39: 6-32
A40: Free RPM: 100 | B40: PWM | C40: # of Cylinders | D40: 0 | E40: 1 & 2 on axle, 3 & 4 on axle | M40: AM Omni | R40: Talon SR | S40: 6-32
A41: Free A: 5 | B41: Radio | C41: Cylinder Bore | D41: 0 | E41: Mesh Pairs: 0&1, 2&3, 4&5 | M41: Diameter | N41: 8" | R41: Talon SRX | S41: 8-32
A42: Stall A: 24 | B42: 3.75” x 2.75” x 1” | C42: Stroke | D42: 0 | M42: Bore | N42: 1.125" & Hub | R42: Victor SP | S42: 8-32
A43: Stall in-lbs: 70 | B43: Light | C43: # of Uses | D43: 0 | M43: Thickness | N43: 2" | R43: VersaHub | S43: 8-32
A44: Weight: 1.11 | B44: Dimensions | C44: # of Cylinders | D44: 0 | M44: Durometer | N44: 80A | R44: AM Hub | S44: 10-32 or 10-24
A45: RS775 | C45: Cylinder Bore | D45: 0 | M45: Vex Pro Omni | R45: ThunderHex | S45: 1 / 4"
A46: Shaft: 5mm | C46: Stroke | D46: 0 | M46: Diameter | N46: 3.25", 4", 6", 8" | R46: VersaPlanetary | S46: 8-32
A47: Free RPM: 5700 | C47: # of Uses | D47: 0 | M47: Bore | N47: 1.125" & Versa | R47: PG Gearboxes | S47: M4x0.7
A48: Stall A: 22 | C48: # of Cylinders | D48: 0 | M48: Thickness | N48: 1.5" | R48: Rivets
A49: Stall in-lbs: 2.1875 | C49: Cylinder Bore | D49: 0 | M49: Mecanum | R49: VersaFrame | S49: 5 / 32
A50: Weight: 0.81 | C50: Stroke | D50: 0 | M50: AM Mecanum
C51: # of Uses | D51: 0 | M51: Diameter | N51: 8"
C52: # of Cylinders | D52: 0 | M52: Bore | N52: 1.125" & Hub
C53: Cylinder Bore | D53: 0 | M53: Thickness | N53: 3"
C54: Stroke | D54: 0 | M54: Vex Pro Mecanum
C55: # of Uses | D55: 0 | M55: Diameter | N55: 4", 6", 8"
C56: # of Cylinders | D56: 0 | M56: Bore for 4" | N56: .5" Hex
C57: Compressor? | D57: 0 | M57: Bore for 6" & 8" | N57: 1.125" & Versa
C58: Clippard Tanks | D58: 0 | M58: Thickness | N58: 2.25"
C59: Air Available Initial
C60: =D58*35 -> 0
C61: Air Generated During Match
C62: =D57*140 -> 0
C63: Total Air | D63: =D60 + D62+SUM(C62,C60) -> 0
C64: Air Used | D64: =(3.141592654*((D33/2)^2)*D34*D35*D36) + (3.141592654*((D37/2)^2)*D38*D39*D40) + (3.141592654*((D41/2)^2)*D42*D43*D44) + (3.141592654*((D45/2)^2)*D46*D47*D48) + (3.141592654*((D49/2)^2)*D50*D51*D52) + (3.141592654*((D53/2)^2)*D54*D55*D56) -> 0

Sheet Inventory
A1: Electrical | C1: Pneumatics | D1: Motion | K1: Hardware | M1: Framing | N1: Fasteners
A2: Motors | B2: Control System | D2: Gears | F2: Sprockets & Chain | G2: Belts & Pulleys | H2: Gearboxes | I2: Wheels | M2: VersaFrame | N2: Bolts

Sheet Robot Notes

Sheet CAW
A7: 2016 FIRST Robotics Competition
A8: Bill of Materials
A9: Team Name: | E9: Team #: | I9: Date:
A10: Event: | E10: City: | I10: State:
A12: Item | C12: Description | E12: Material | G12: Source | I12: Quantity | K12: Measurement | M12: Unit Price | O12: Total Price
A13: Major System Names Here | C13: Describe the Part (Axle, Bearing, Lifter, Solenoid) | E13: What is it made from | G13: Where did you buy it (Home Depot, AndyMark, Supply House, Etc.) | I13: How Many | K13: Piece, Inch, Etc. | M13: Cost Per Unit ($)
A14: Subsystem 1:
O15: =I15*M15 -> 0
O16: 0
O17: 0
O18: 0
O19: 0
O20: 0
O21: 0
O22: 0
M23: Subtotals: | O23: =SUM(O15:O22) -> 0
A24: Subsystem 2:
O25: =I25*M25 -> 0
O26: 0
O27: 0
O28: 0
O29: 0
O30: 0
O31: 0
O32: 0
M33: Subtotals: | O33: =SUM(O25:O32) -> 0
A34: Subsystem 3:
O35: =I35*M35 -> 0
O36: 0
O37: 0
O38: 0
O39: 0
O40: 0
O41: 0
O42: 0
M43: Subtotals: | O43: =SUM(O35:O42) -> 0
A44: Subsystem 4:
O45: =I45*M45 -> 0
O46: 0
O47: 0
O48: 0
O49: 0
O50: 0
O51: 0
O52: 0
M53: Subtotals: | O53: =SUM(O45:O52) -> 0
M55: Totals: | O55: =O23+O43+O33+O53 -> 0
